lending/lending_fUSD_20250819
["ID","MTS","AMOUNT","RATE_DAILY","PERIOD"]
[380155709,1755581440089,-265.710637,0.00010667,2]
[380155712,1755581440103,-151.0,0.00010667,2]
[380155714,1755581440113,-265.710637,0.00010667,2]
[380155716,1755581440122,-299.130557,0.00010667,2]
[380155718,1755581440131,-265.710637,0.00010667,2]
[380155720,1755581440142,-151.0,0.00010667,2]
[380155722,1755581440152,-265.710637,0.00010667,2]
[380155724,1755581440161,-151.0,0.00010667,2]
[380155726,1755581440171,-151.0,0.00010667,2]
[380155728,1755581440180,-151.0,0.00010667,2]
[380155730,1755581440189,-245.423053,0.00010667,2]
[380155732,1755581440199,-245.423053,0.00010667,2]
[380155734,1755581440208,-245.423053,0.00010667,2]
[380155736,1755581440218,-151.0,0.00010667,2]
[380155738,1755581440228,-151.0,0.00010667,2]
[380155740,1755581440237,-245.423053,0.00010667,2]
[380155742,1755581440247,-151.0,0.00010667,2]
[380155744,1755581440256,-234.280564,0.00010667,2]
[380155746,1755581440266,-152.739743,0.00010667,2]
[380155748,1755581440276,-234.280564,0.00010667,2]
[380155750,1755581440285,-234.280564,0.00010667,2]
[380155752,1755581440294,-234.280564,0.00010667,2]
[380155754,1755581440304,-151.0,0.00010667,2]
[380155756,1755581440313,-151.0,0.00010667,2]
[380155758,1755581440323,-151.0,0.00010667,2]
[380155760,1755581440333,-151.0,0.00010667,2]
[380155762,1755581440342,-1425.0,0.0001067,2]
[380155764,1755581440352,-245.188992,0.0001067,2]
[380155766,1755581440362,-239.478409,0.0001067,2]
[380155768,1755581440372,-239.478409,0.0001067,2]
[380155771,1755581440382,-239.478409,0.0001067,2]
[380155773,1755581440391,-239.478409,0.0001067,2]
[380155788,1755581440519,-1425.0,0.00010683,2]
[380155790,1755581440529,-1425.0,0.00010691,2]
[380155792,1755581440538,-1425.0,0.00010697,2]
[380155795,1755581440547,-151.0,0.00010697,2]
[380155797,1755581440557,-151.0,0.00010697,2]
[380155799,1755581440566,-151.0,0.00010697,2]
[380155801,1755581440576,-359.060678,0.00010697,2]
[380155803,1755581440585,-359.060678,0.00010697,2]
[380155804,1755581440593,-359.060678,0.00010697,2]
[380155807,1755581440603,-359.060678,0.00010697,2]
[380155808,1755581440612,-1425.0,0.00010698,2]
[380155809,1755581440621,-200.0,0.000107,3]
[380155810,1755581440631,-1425.0,0.00010705,2]
[380155811,1755581440640,-750.0,0.00010706,2]
[380155812,1755581440649,-1425.0,0.00010738,2]
[380155813,1755581440658,-1425.0,0.00010739,2]
[380155814,1755581440667,-1425.0,0.00010739,2]
[380155815,1755581440677,-1425.0,0.00010739,2]
[380155816,1755581440686,-1425.0,0.00010742,2]
[380155817,1755581440695,-1425.0,0.00010744,2]
[380155819,1755581440705,-1425.0,0.00010748,2]
[380155821,1755581440714,-420.0,0.00010755,2]
[380155823,1755581440725,-1425.0,0.00010758,2]
[380155825,1755581440734,-1425.0,0.00010764,2]
[380155827,1755581440743,-151.0,0.00010764,2]
[380155829,1755581440753,-151.0,0.00010764,2]
[380155831,1755581440762,-151.0,0.00010764,2]
[380155833,1755581440771,-151.0,0.00010764,2]
[380155835,1755581440782,-153.49215,0.00010764,2]
[380155837,1755581440791,-163.850943,0.00010764,2]
[380155839,1755581440800,-151.0,0.00010764,2]
[380155841,1755581440810,-153.49215,0.00010764,2]
[380155843,1755581440820,-163.850943,0.00010764,2]
[380155845,1755581440829,-151.0,0.00010764,2]
[380155847,1755581440839,-153.49215,0.00010764,2]
[380155849,1755581440848,-151.0,0.00010764,2]
[380155851,1755581440857,-163.850943,0.00010764,2]
[380155853,1755581440866,-153.49215,0.00010764,2]
[380155855,1755581440875,-1425.0,0.00010768,2]
[380155857,1755581440884,-243.839269,0.00010768,2]
[380155859,1755581440893,-243.839269,0.00010768,2]
[380155861,1755581440903,-243.839269,0.00010768,2]
[380155863,1755581440912,-243.839269,0.00010768,2]
[380155865,1755581440921,-500.0,0.0001077,2]
[380155867,1755581440931,-167.21046457,0.0001077,2]
[380155869,1755581440940,-500.0,0.0001077,2]
[380155871,1755581440949,-500.0,0.0001077,2]
[380155873,1755581440958,-712.0,0.0001077,2]
[380155875,1755581440969,-500.0,0.0001077,2]
[380155877,1755581440979,-1947.0,0.0001077,2]
[380155879,1755581440989,-500.0,0.0001077,2]
[380155881,1755581440998,-944.0,0.0001077,2]
[380155883,1755581441007,-500.0,0.0001077,2]
[380155885,1755581441016,-150.0,0.0001077,2]
[380155887,1755581441026,-179.997855,0.0001077,2]
[380155889,1755581441035,-151.0,0.0001077,2]
[380155891,1755581441045,-151.0,0.0001077,2]
[380155894,1755581441054,-206.474823,0.0001077,2]
[380155896,1755581441064,-500.0,0.0001077,2]
[380155898,1755581441073,-150.0,0.0001077,2]
[380155900,1755581441082,-953.0,0.0001077,2]
[380155902,1755581441092,-500.0,0.0001077,2]
[380155904,1755581441106,-265.710637,0.0001077,2]
[380155906,1755581441115,-151.0,0.0001077,2]
[380155909,1755581441125,-265.710637,0.0001077,2]
[380155911,1755581441135,-265.710637,0.0001077,2]
[380155913,1755581441145,-151.0,0.0001077,2]
[380155915,1755581441154,-265.710637,0.0001077,2]
[380155916,1755581441164,-151.0,0.0001077,2]
[380155918,1755581441174,-192.384906,0.0001077,2]
[380155920,1755581441184,-151.0,0.0001077,2]
[380155922,1755581441193,-245.423053,0.0001077,2]
[380155924,1755581441203,-245.423053,0.0001077,2]
[380155927,1755581441213,-245.423053,0.0001077,2]
[380155929,1755581441222,-151.0,0.0001077,2]
[380155931,1755581441232,-151.0,0.0001077,2]
[380155933,1755581441241,-245.423053,0.0001077,2]
[380155934,1755581441251,-151.0,0.0001077,2]
[380155936,1755581441261,-234.280564,0.0001077,2]
[380155938,1755581441271,-234.280564,0.0001077,2]
[380155940,1755581441281,-234.280564,0.0001077,2]
[380155943,1755581441291,-234.280564,0.0001077,2]
[380155945,1755581441300,-150.0,0.0001077,2]
[380155946,1755581441310,-500.0,0.0001077,2]
[380155948,1755581441320,-500.0,0.0001077,2]
[380155951,1755581441331,-150.0,0.0001077,2]
[380155953,1755581441341,-151.0,0.0001077,2]
[380155955,1755581441351,-151.0,0.0001077,2]
[380155957,1755581441360,-151.0,0.0001077,2]
[380155959,1755581441369,-150.91,0.0001077,2]
[380155961,1755581441378,-201.8,0.0001077,2]
[380155963,1755581441388,-152.24,0.0001077,2]
[380155965,1755581441399,-203.75,0.0001077,2]
[380155967,1755581441408,-201.52,0.0001077,2]
[380155969,1755581441418,-305.05,0.0001077,2]
[380155971,1755581441427,-1425.0,0.00010771,2]
[380155973,1755581441436,-1425.0,0.00010771,2]
[380155975,1755581441446,-151.0,0.00010771,2]
[380155977,1755581441455,-762.560617,0.00010771,2]
[380155979,1755581441464,-762.560617,0.00010771,2]
[380155981,1755581441473,-762.560617,0.00010771,2]
[380155983,1755581441483,-762.560617,0.00010771,2]
[380155985,1755581441492,-239.478409,0.00010771,2]
[380155987,1755581441501,-239.478409,0.00010771,2]
[380155989,1755581441510,-239.478409,0.00010771,2]
[380155991,1755581441520,-239.478409,0.00010771,2]
[380155993,1755581441529,-151.0,0.00010771,2]
[380155995,1755581441539,-260.879991,0.00010771,2]
[380155997,1755581441548,-359.060678,0.00010771,2]
[380155999,1755581441557,-359.060678,0.00010771,2]
[380156001,1755581441567,-359.060678,0.00010771,2]
[380156003,1755581441576,-359.060678,0.00010771,2]
[380156005,1755581441585,-1425.0,0.00010775,2]
[380156007,1755581441595,-1425.0,0.00010778,2]
[380156009,1755581441604,-1425.0,0.00010795,2]
[380156011,1755581441613,-1000.0,0.00010799,2]
[380156013,1755581441623,-200.0,0.000108,3]
[380156015,1755581441632,-1425.0,0.00010808,2]
[380156017,1755581441641,-1425.0,0.0001081,2]
[380156019,1755581441650,-151.0,0.0001081,2]
[380156021,1755581441660,-1425.0,0.00010824,2]
[380156023,1755581441669,-151.0,0.00010824,2]
[380156025,1755581441678,-151.0,0.00010824,2]
[380156027,1755581441687,-151.0,0.00010824,2]
[380156029,1755581441696,-151.0,0.00010824,2]
[380156031,1755581441705,-153.49215,0.00010824,2]
[380156033,1755581441714,-163.850943,0.00010824,2]
[380156035,1755581441724,-151.0,0.00010824,2]
[380156037,1755581441733,-153.49215,0.00010824,2]
[380156039,1755581441742,-163.850943,0.00010824,2]
[380156041,1755581441752,-151.0,0.00010824,2]
[380156043,1755581441761,-153.49215,0.00010824,2]
[380156045,1755581441771,-151.0,0.00010824,2]
[380156047,1755581441780,-163.850943,0.00010824,2]
[380156049,1755581441789,-1425.0,0.00010827,2]
[380156051,1755581441798,-1425.0,0.00010828,2]
[380156053,1755581441808,-862.50654906,0.00010832,2]
[380156055,1755581441822,-300.55768777,0.00010832,2]
[380156058,1755581441834,-186.93576317,0.00010832,2]
[380156060,1755581441843,-313.06423683,0.00010833,2]
[380156062,1755581441854,-497.41261426,0.00010833,2]
[380156064,1755581441869,-614.52314891,0.00010833,2]
[380156066,1755581441879,-552.81374017,0.00010836,2]
[380156069,1755581441892,-199.18625983,0.00010836,2]
[380156071,1755581441902,-1425.0,0.00010836,2]
[380156073,1755581441912,-151.0,0.00010836,2]
[380156075,1755581441922,-151.0,0.00010836,2]
[380156077,1755581441932,-1425.0,0.00010837,2]
[380156079,1755581441941,-1000.0,0.00010838,2]
[380156080,1755581441951,-243.839269,0.00010838,2]
[380156083,1755581441962,-243.839269,0.00010838,2]
[380156084,1755581441971,-27.75695217,0.00010838,2]
[380156085,1755581441983,-216.08231683,0.00010838,2]
[380156086,1755581441995,-243.839269,0.00010838,2]
[380156087,1755581442007,-245.423053,0.00010838,2]
[380156088,1755581442016,-245.423053,0.00010838,2]
[380156089,1755581442026,-245.423053,0.00010838,2]
[380156090,1755581442035,-151.0,0.00010838,2]
[380156091,1755581442044,-151.0,0.00010838,2]
[380156093,1755581442053,-245.423053,0.00010838,2]
[380156095,1755581442063,-151.0,0.00010838,2]
[380156097,1755581442072,-234.280564,0.00010838,2]
[380156099,1755581442082,-234.280564,0.00010838,2]
[380156101,1755581442091,-234.280564,0.00010838,2]
[380156103,1755581442105,-234.280564,0.00010838,2]
[380156105,1755581442114,-151.0,0.00010838,2]
[380156107,1755581442123,-151.0,0.00010838,2]
[380156109,1755581442133,-151.0,0.00010838,2]
[380156111,1755581442143,-265.710637,0.00010855,2]
[380156113,1755581442153,-151.0,0.00010855,2]
[380156115,1755581442162,-265.710637,0.00010855,2]
[380156117,1755581442172,-265.710637,0.00010855,2]
[380156119,1755581442181,-151.0,0.00010855,2]
[380156121,1755581442191,-265.710639,0.00010855,2]
[380156123,1755581442200,-151.0,0.00010855,2]
[380156125,1755581442210,-1425.0,0.0001088,2]
[380156127,1755581442220,-1425.0,0.00010882,2]
[380156129,1755581442231,-297.14337034,0.00010885,2]
[380156131,1755581442241,-3180.53268233,0.00010892,2]
[380156135,1755581442270,-677.44801304,0.00010892,2]
[380156139,1755581442297,-1142.01930463,0.00010892,2]
[380156141,1755581442307,-151.0,0.00010899,2]
[380156143,1755581442317,-762.560617,0.00010899,2]
[380156145,1755581442326,-153.51294227,0.00010899,2]
[380156279,1755581443690,-1355.40583906,0.00010203,2]
[380156283,1755581443714,-924.979392,0.00010203,2]
[380156288,1755581443752,-2124.05,0.00010203,2]
[380156290,1755581443763,-3002.86509863,0.00010203,2]
[380156293,1755581443782,-578.70368,0.00010203,2]
[380156296,1755581443793,-9457.086707,0.00010203,2]
[380156339,1755581446942,-1732.40451457,0.00010203,2]
[380156340,1755581448691,-2321.50476874,0.00010203,2]
[380156341,1755581448700,-717.0,0.00010203,2]
[380156342,1755581448709,-163.850943,0.0001065,2]
[380156343,1755581448719,-186.704876,0.0001065,2]
[380156344,1755581448728,-163.850943,0.00010764,2]
[380156345,1755581448739,-153.49215,0.00010824,2]
[380156346,1755581448748,-163.850943,0.00010824,2]
[380156347,1755581448758,-609.04767473,0.00010899,2]
[380156348,1755581448767,-139.09770153,0.00010899,2]
[380156349,1755581448812,-623.46291547,0.00010899,2]
[380156350,1755581448821,-762.560617,0.00010899,2]
[380156351,1755581448831,-239.478409,0.00010899,2]
[380156352,1755581448840,-239.478409,0.00010899,2]
[380156353,1755581448849,-239.478409,0.00010899,2]
[380156354,1755581448858,-239.478409,0.00010899,2]
[380156355,1755581448867,-151.0,0.00010899,2]
[380156356,1755581448876,-359.060678,0.00010899,2]
[380156357,1755581448885,-359.060678,0.00010899,2]
[380156358,1755581448894,-359.060678,0.00010899,2]
[380156359,1755581448903,-359.060678,0.00010899,2]
[380156360,1755581448912,-158.91049448,0.00010899,2]
[380156361,1755581448921,-4292.86309584,0.000109,2]
[380156362,1755581449194,-2393.97988322,0.000109,2]
[380156363,1755581449203,-2383.2524,0.000109,2]
[380156364,1755581449212,-172.13189628,0.000109,2]
[380156365,1755581449221,-172.13189627,0.000109,2]
[380156366,1755581449231,-700.0,0.000109,3]
[380156367,1755581449241,-301.71365336,0.000109,2]
[380156368,1755581449250,-151.0,0.000109,2]
[380156369,1755581449260,-151.0,0.000109,2]
[380156370,1755581449269,-151.0,0.000109,2]
[380156371,1755581449279,-151.0,0.000109,2]
[380156372,1755581449288,-153.49215,0.000109,2]
[380156373,1755581449298,-163.850943,0.000109,2]
[380156374,1755581449307,-151.0,0.000109,2]
[380156375,1755581449316,-153.49215,0.000109,2]
[380156376,1755581449325,-163.850943,0.000109,2]
[380156377,1755581449335,-151.0,0.000109,2]
[380156378,1755581449344,-153.49215,0.000109,2]
[380156379,1755581449354,-163.850943,0.000109,2]
[380156380,1755581449363,-153.49215,0.000109,2]
[380156381,1755581449372,-151.0,0.000109,2]
[380156382,1755581449382,-163.850943,0.000109,2]
[380156383,1755581449391,-214.060561,0.00010959,2]
[380156384,1755581449400,-214.060561,0.00010959,2]
[380156385,1755581449410,-214.060561,0.00010959,2]
[380156386,1755581449419,-214.060561,0.00010959,2]
[380156387,1755581449428,-1070.238916,0.00010959,2]
[380156388,1755581449438,-645.24273794,0.00010959,2]
[380156389,1755581449450,-424.99617806,0.00010959,2]
[380156390,1755581449459,-1070.238916,0.00010959,2]
[380156391,1755581449469,-1070.238916,0.00010959,2]
[380156392,1755581449479,-1070.238916,0.00010959,2]
[380156393,1755581449489,-1070.238916,0.00010959,2]
[380156394,1755581449498,-1070.238916,0.00010959,2]
[380156395,1755581449507,-1070.238916,0.00010959,2]
[380156396,1755581449517,-1070.238916,0.00010959,2]
[380156397,1755581449526,-1070.238916,0.00010959,2]
[380156398,1755581449535,-1070.238916,0.00010959,2]
[380156399,1755581449545,-1070.238916,0.00010959,2]
[380156400,1755581449554,-1070.238916,0.00010959,2]
[380156401,1755581449568,-1070.238916,0.00010959,2]
[380156402,1755581449578,-1070.238916,0.00010959,2]
[380156403,1755581449588,-1070.238916,0.00010959,2]
[380156404,1755581449597,-1070.238916,0.00010959,2]
[380156405,1755581449607,-1070.238916,0.00010959,2]
[380156406,1755581449617,-1070.238916,0.00010959,2]
[380156407,1755581449627,-1070.238919,0.00010959,2]
[380156408,1755581449637,-150.0,0.00010959,2]
[380156409,1755581449646,-3202.52101,0.00010959,2]
[380156410,1755581449656,-3202.52101,0.00010959,2]
[380156411,1755581449665,-3202.52101,0.00010959,2]
[380156412,1755581449675,-3202.52101,0.00010959,2]
[380156413,1755581449685,-3202.52101,0.00010959,2]
[380156414,1755581449695,-3202.52101,0.00010959,2]
[380156415,1755581449705,-3202.52101,0.00010959,2]
[380156416,1755581449714,-3202.52101,0.00010959,2]
[380156417,1755581449724,-3202.52101,0.00010959,2]
[380156418,1755581449734,-3202.52101,0.00010959,2]
[380156419,1755581449744,-3202.52101,0.00010959,2]
[380156420,1755581449753,-3202.52101,0.00010959,2]
[380156421,1755581449763,-3202.52101,0.00010959,2]
[380156422,1755581449773,-3202.52101,0.00010959,2]
[380156423,1755581449782,-3202.52101,0.00010959,2]
[380156424,1755581449791,-3202.52101,0.00010959,2]
[380156425,1755581449801,-243.839269,0.00010959,2]
[380156426,1755581449810,-243.839269,0.00010959,2]
[380156427,1755581449819,-243.839269,0.00010959,2]
[380156428,1755581449829,-243.839261,0.00010959,2]
[380156429,1755581449838,-239.478409,0.00010959,2]
[380156430,1755581449847,-239.478409,0.00010959,2]
[380156431,1755581449857,-239.478409,0.00010959,2]
[380156432,1755581449866,-239.478411,0.00010959,2]
[380156433,1755581449875,-245.423053,0.00010959,2]
[380156434,1755581449885,-245.423053,0.00010959,2]
[380156435,1755581449894,-245.423053,0.00010959,2]
[380156436,1755581449904,-245.42306,0.00010959,2]
[380156437,1755581449913,-151.0,0.00010959,2]
[380156438,1755581449922,-234.280564,0.00010959,2]
[380156439,1755581449933,-234.280564,0.00010959,2]
[380156440,1755581449944,-234.280564,0.00010959,2]
[380156441,1755581449954,-234.280567,0.00010959,2]
[380156442,1755581449963,-3202.52101,0.00010959,2]
[380156443,1755581449972,-3202.52101,0.00010959,2]
[380156444,1755581449982,-3202.52101,0.00010959,2]
[380156445,1755581449992,-3202.521,0.00010959,2]
[380156446,1755581450002,-151.0,0.00010959,2]
[380156447,1755581450011,-151.0,0.00010959,2]
[380156448,1755581450021,-186.017099,0.00010959,2]
[380156449,1755581450031,-151.0,0.00010959,2]
[380156450,1755581450040,-151.0,0.00010959,2]
[380156451,1755581450050,-258.289807,0.00010959,2]
[380156452,1755581450060,-151.0,0.00010959,2]
[380156453,1755581450072,-153.49215,0.00010959,2]
[380156454,1755581450084,-163.850943,0.00010959,2]
[380156455,1755581450093,-151.0,0.00010959,2]
[380156456,1755581450106,-153.49215,0.00010959,2]
[380156457,1755581450116,-163.850943,0.00010959,2]
[380156458,1755581450127,-151.0,0.00010959,2]
[380156459,1755581450137,-153.49215,0.00010959,2]
[380156460,1755581450146,-163.850943,0.00010959,2]
[380156461,1755581450156,-153.492149,0.00010959,2]
[380156462,1755581450165,-151.0,0.00010959,2]
[380156463,1755581450175,-163.850941,0.00010959,2]
[380156464,1755581450186,-500.0,0.00010973,2]
[380156465,1755581450197,-500.0,0.00010973,2]
[380156466,1755581450206,-366.5754443,0.00010973,2]
[380156467,1755581450215,-151.0,0.00010973,2]
[380156468,1755581450225,-3733.93196602,0.0001098,2]
[380156469,1755581450234,-151.0,0.0001098,2]
[380156470,1755581450243,-762.560617,0.0001098,2]
[380156471,1755581450253,-762.560617,0.0001098,2]
[380156472,1755581450262,-762.560617,0.0001098,2]
[380156473,1755581450271,-762.560613,0.0001098,2]
[380156474,1755581450281,-178.3374462,0.0001098,2]
[380156475,1755581450290,-308.8877509,0.00010985,2]
[380156476,1755581450299,-150.0,0.00010986,2]
[380156477,1755581450309,-150.0,0.00010986,2]
[380156478,1755581450319,-151.15851906,0.00010986,2]
[380156479,1755581450329,-150.0,0.00010986,2]
[380156480,1755581450338,-151.7369277,0.00010986,2]
[380156481,1755581450348,-150.0,0.00010986,2]
[380156482,1755581450357,-3631.58604836,0.0001099,2]
[380156483,1755581450367,-3319.67068225,0.00010991,2]
[380156484,1755581450377,-5761.17386301,0.00010992,2]
[380156485,1755581450386,-270.69572264,0.00010992,2]
[380156486,1755581450396,-200.0,0.00010992,2]
[380156487,1755581450405,-200.0,0.00010992,2]
[380156488,1755581450414,-340.2024178,0.00010992,2]
[380156489,1755581450424,-371.5170848,0.00010992,2]
[380156490,1755581450434,-402.8317517,0.00010992,2]
[380156491,1755581450444,-434.1464187,0.00010992,2]
[380156492,1755581450454,-465.4610856,0.00010992,2]
[380156493,1755581450464,-3007.75531613,0.00010992,2]
[380156494,1755581450474,-2695.83995002,0.00010993,2]
[380156495,1755581450484,-2383.9245839,0.00010994,2]
[380156496,1755581450494,-1459.51436781,0.00010995,2]
[380156497,1755581450508,-612.49484997,0.00010995,2]
[380156498,1755581450517,-9446.65718083,0.00010996,2]
[380156499,1755581481618,166.51,9.421e-05,2]
[380156500,1755581506813,309.0,9.412e-05,2]
[380156503,1755581652969,150.0,8.5e-05,2]
[380156506,1755581782814,1000.0,9.549e-05,2]
[380156507,1755582026074,-192.5309219,9.635e-05,2]
[380156508,1755582026100,-300.0,9.635e-05,2]
[380156509,1755582026126,-1200.0,9.635e-05,2]
[380156510,1755582026151,-250.0,9.635e-05,2]
[380156511,1755582026175,-5000.0,9.635e-05,2]
[380156512,1755582026200,-300.0,9.635e-05,2]
[380156513,1755582026226,-541.03499886,9.635e-05,2]
[380156514,1755582171722,150.0,8.5e-05,2]
[380156517,1755582409600,6227.68,9.483e-05,2]
[380156518,1755582426918,171.08,9.403e-05,2]
[380156519,1755582427053,171.08,9.408e-05,2]
[380156520,1755582427170,171.08,9.413e-05,2]
[380156521,1755582427283,171.08,9.418e-05,2]
[380156522,1755582427453,171.08,9.423e-05,2]
[380156523,1755582427628,171.08,9.428e-05,2]
[380156524,1755582428913,171.08,9.433e-05,2]
[380156525,1755582429365,171.08,9.438e-05,2]
[380156526,1755582429559,171.08,9.443e-05,2]
[380156527,1755582429627,171.08,9.448e-05,2]
[380156528,1755582429799,171.08,9.453e-05,2]
[380156529,1755582429896,171.08,9.458e-05,2]
[380156530,1755582430007,171.08,9.463e-05,2]
[380156531,1755582430392,171.08,9.468e-05,2]
[380156532,1755582430492,171.08,9.473e-05,2]
[380156533,1755582430705,171.08,9.478e-05,2]
[380156534,1755582430856,171.08,9.483e-05,2]
[380156535,1755582430948,171.08,9.488e-05,2]
[380156536,1755582431063,171.08,9.493e-05,2]
[380156537,1755582431220,171.08,9.498e-05,2]
[380156540,1755582449466,-250.0,9.522e-05,2]
[380156541,1755582449498,-1200.0,9.543e-05,2]
[380156542,1755582449525,-300.0,9.543e-05,2]
[380156543,1755582449552,-162.67628254,9.544e-05,2]
[380156544,1755582449580,-5000.0,9.544e-05,2]
[380156545,1755582449608,-2000.0,9.544e-05,2]
[380156546,1755582466764,200.0,9.539e-05,2]
[380156547,1755582477580,294.01,9.544e-05,2]
[380156548,1755582482099,500.0,9.542e-05,2]
[380156549,1755582482147,500.0,9.542e-05,2]
[380156552,1755582560152,304.72,9.503e-05,2]
[380156598,1755582632917,-220.84,9.566e-05,2]
[380156599,1755582632926,-227.64401838,9.566e-05,2]
[380156600,1755582632938,-687.39598162,9.566e-05,2]
[380156601,1755582632947,-396.52132724,9.57e-05,2]
[380156602,1755582632956,-824.95990825,9.574e-05,2]
[380156638,1755582633292,-4175.04009175,9.574e-05,2]
[380156640,1755582633302,-1110.19167723,9.583e-05,2]
[380156642,1755582633314,-936.265,9.583e-05,2]
[380156645,1755582633325,-263.70556754,9.583e-05,2]
[380156648,1755582633342,-498.24031858,9.583e-05,2]
[380156708,1755582638504,-2191.59743665,9.583e-05,2]
[380156709,1755582638514,-1200.0,9.598e-05,2]
[380156710,1755582638527,-300.0,9.598e-05,2]
[380156711,1755582638536,-1482.26736801,9.624e-05,2]
[380156881,1755582640235,2195.02,9.541e-05,2]
[380156889,1755582640302,-2255.18294099,9.624e-05,2]
[380156908,1755582643846,-197.47653952,9.573e-05,2]
[380156909,1755582643856,-1262.549691,9.624e-05,2]
[380156910,1755582643867,-2148.91380438,9.64e-05,2]
[380156911,1755582643881,-1783.72589795,9.64e-05,2]
[380156912,1755582643892,-502.49912,9.64e-05,2]
[380156913,1755582643909,-1103.67117767,9.64e-05,2]
[380156914,1755582643919,-150.0,9.68e-05,2]
[380156915,1755582643931,-170.0,9.836e-05,7]
[380156916,1755582643942,-150.0,9.888e-05,2]
[380156917,1755582643951,-150.0,9.888e-05,2]
[380156918,1755582643961,-150.0,9.888e-05,2]
[380156919,1755582643971,-150.0,9.888e-05,2]
[380156920,1755582643981,-150.0,9.888e-05,2]
[380156921,1755582643991,-150.0,9.888e-05,2]
[380156922,1755582644000,-150.0,9.888e-05,2]
[380156923,1755582644010,-150.0,9.899e-05,2]
[380156924,1755582644018,-299.99,9.899e-05,2]
[380156925,1755582644027,-200.0,9.9e-05,2]
[380156926,1755582644037,-166.51,9.939e-05,2]
[380156927,1755582644047,-856.0,9.945e-05,2]
[380156928,1755582644056,-514.31668875,0.0001,2]
[380156929,1755582644065,-339.88857511,0.0001,2]
[380156930,1755582644090,-160.11142489,0.0001,2]
[380156931,1755582644100,-151.0,0.0001,2]
[380156932,1755582644109,-151.0,0.0001,2]
[380156933,1755582644118,-151.0,0.0001,2]
[380156934,1755582644127,-151.0,0.0001,2]
[380156935,1755582644136,-151.0,0.0001,2]
[380156936,1755582644147,-151.0,0.0001,2]
[380156937,1755582644156,-151.0,0.0001,2]
[380156938,1755582644166,-151.0,0.0001,2]
[380156939,1755582644175,-151.0,0.0001,2]
[380156940,1755582644187,-151.0,0.0001,2]
[380156941,1755582644197,-151.0,0.0001,2]
[380156942,1755582644208,-151.0,0.0001,2]
[380156943,1755582644219,-151.0,0.0001,2]
[380156944,1755582644229,-200.0,0.0001,2]
[380156945,1755582644241,-152.59,0.00010012,2]
[380156946,1755582644253,-225.0,0.00010012,2]
[380156947,1755582644264,-201.3,0.00010019,2]
[380156948,1755582644274,-200.35,0.00010019,2]
[380156949,1755582644284,-203.5,0.00010019,2]
[380156950,1755582644293,-302.26,0.0001003,2]
[380156951,1755582644302,-809.55,0.00010055,2]
[380156952,1755582644312,-798.74,0.00010055,2]
[380156953,1755582644324,-798.74,0.00010055,2]
[380156954,1755582644333,-798.74,0.00010055,2]
[380156955,1755582644342,-500.0,0.00010055,2]
[380156956,1755582644351,-721.12765535,0.00010079,2]
[380156957,1755582644361,-160.0,0.00010079,2]
[380156958,1755582644370,-151.0,0.00010079,2]
[380156959,1755582644379,-277.35679052,0.00010079,2]
[380156960,1755582644389,-300.0,0.00010079,2]
[380156961,1755582644400,-203.94,0.00010084,2]
[380156962,1755582644412,-202.93,0.00010084,2]
[380156963,1755582644423,-202.59,0.00010084,2]
[380156964,1755582644434,-300.56,0.00010096,2]
[380156965,1755582644449,-302.13,0.00010096,2]